[Event "HUN Women vs Morgan Stanley 2022"]
[Site "Budapest"]
[Date "2022.06.27"]
[Round "3.3"]
[White "Gaal, Zsoka"]
[Black "Novaky, Csaba"]
[Result "1-0"]
[ECO "A05"]
[WhiteElo "2323"]
[BlackElo "2091"]
[Annotator "TA"]
[PlyCount "81"]
[EventDate "2022.06.27"]
[EventType "schev"]
[EventCountry "HUN"]
[SourceTitle "playchess.com"]
[Source "ChessBase"]
[SourceQuality "1"]
[TimeControl "900+2"]

{[%evp 13,81,18,19,12,43,26,53,31,87,42,50,51,68,72,104,102,150,103,152,105,113,109,146,152,209,209,212,169,227,237,240,246,243,237,298,289,285,287,277,241,360,360,327,319,374,363,370,312,308,296,305,297,377,360,487,516,493,392,713,686,845,839,821,823,803,792,735,712,625,597]} 1. Nf3 {[%emt 0:00:08]} Nf6 {[%emt 0:00:05]} 2. b3 {[%emt 0:00:07]} d5 {[%emt 0:00:13]} 3. g3 {[%emt 0:00:15]} c5 {[%emt 0:00:18]} 4. Bg2 {[%emt 0:00:09]} Nc6 {[%emt 0:00:03]} 5. Bb2 {[%emt 0:00:01]} e6 {[%emt 0:00:21]} 6. O-O {[%emt 0:00:06]} Bd6 {[%emt 0:00:11]} 7. d4 {[%emt 0:00:05]} O-O {[%emt 0:00:30]} 8. c4 {[%emt 0:00:32] D02: 1 d4 d5 2 Nf3 sidelines, including 2...Nf6 3 g3 and 2...Nf6 3 Bf4.} cxd4 {[%emt 0:01:13]} (8... dxc4 {is more complex.} 9. dxc5 Bxc5 10. Qc1 Bd7) 9. cxd5 {[%emt 0:00:44]} Nxd5 {[%emt 0:00:53]} 10. Nxd4 {[%emt 0:00:05] [#] White is slightly better.} Nxd4 $146 {[%emt 0:01:41]} (10... Qf6 $14) ({Predecessor:} 10... Be7 11. Nxc6 bxc6 12. e4 Nb4 13. Qc1 Ba6 14. Rd1 Qb6 15. Qc3 Bf6 16. e5 Be7 {1-0 (35) Gombocz,F (2295)-Tharushi,T (1712) Chess.com INT 2021}) 11. Bxd4 {[%emt 0:00:58]} Be7 {[%emt 0:01:15]} 12. Nc3 {[%emt 0:02:50]} Nxc3 {[%emt 0:00:25]} 13. Bxc3 {[%emt 0:00:02]} Bf6 {[%emt 0:00:25]} 14. Qxd8 {[%emt 0:00:33]} Rxd8 {[%emt 0:01:35]} (14... Bxd8 $142 15. Rfd1 Be7) 15. Rfd1 {[%emt 0:01:39]} ({Better is} 15. Bxf6 gxf6 16. Rfd1) 15... Re8 {[%emt 0:01:40]} (15... Rxd1+ $142 16. Rxd1 Be7) 16. Rac1 {[%emt 0:00:13]} (16. Bxf6 $142 gxf6 17. Rac1) 16... Bxc3 {[%emt 0:00:53]} 17. Rxc3 {[%emt 0:00:01]} e5 {[%emt 0:00:31] [#]} 18. Rc7 $1 {[%emt 0:00:26] White is more active.} Rb8 {[%emt 0:00:11]} (18... Kf8 $16 19. Bxb7 Bxb7) 19. Bd5 $18 {[%emt 0:01:23]} Rf8 {[%emt 0:00:40]} 20. Rdc1 {[%emt 0:00:13][%cal Oc7f7] aiming for Rxf7!} Bg4 {[%emt 0:00:33]} (20... Be6 $142) 21. f3 {[%emt 0:00:06]} (21. Bxb7 Bxe2 22. Re1 Bg4 23. Rxe5 Be6) 21... Be6 {[%emt 0:00:19]} 22. Bxe6 {[%emt 0:01:50]} ({Don't do} 22. Bxb7 Rbd8 23. Ba6 Rd2) 22... fxe6 {[%emt 0:00:01][%mdl 4096] Endgame KRR-KRR} 23. Re7 {[%emt 0:00:01] [#] Threatens to win with Rcc7.} Rfc8 {[%emt 0:01:11]} 24. Rxc8+ {[%emt 0:00:10]} Rxc8 {[%emt 0:00:01]} 25. Rxb7 {[%emt 0:00:04] KR-KR} a5 {[%emt 0:00:16]} 26. Rb5 {[%emt 0:00:07]} a4 {[%emt 0:00:01]} (26... Rc2 $142 27. Rxe5 (27. Rxa5 Rxe2 28. a4 h6 $18) 27... Rxa2 28. Rxe6 Kf7) 27. Rxe5 {[%emt 0:00:41]} ({Resist} 27. bxa4 e4 28. fxe4 Rc4 $18) 27... axb3 {[%emt 0:00:04]} 28. axb3 {[%emt 0:00:01][%cal Ba2b3,Bb3b4][%mdl 32]} Rc3 {[%emt 0:00:09]} 29. b4 {[%emt 0:00:06]} Rb3 {[%emt 0:00:01]} 30. Re4 {[%emt 0:00:34]} Kf7 {[%emt 0:00:02]} 31. Kf2 {[%emt 0:00:01]} Kf6 {[%emt 0:00:01]} 32. h4 {[%emt 0:00:07][%cal Bh2h4,Bh4h5][%mdl 32]} e5 {[%emt 0:00:04]} 33. g4 {[%emt 0:00:07]} h6 {[%emt 0:00:02]} 34. h5 {[%emt 0:00:01]} Rb2 {[%emt 0:00:07]} 35. Ke1 {[%emt 0:00:02]} Rb3 $2 {[%emt 0:00:11]} (35... Ke6 36. f4 Kf7 37. Rxe5 Rxb4 38. Rf5+ Ke6) 36. Kd2 {[%emt 0:00:02] White is clearly winning.} Rb2+ {[%emt 0:00:03]} 37. Kc3 {[%emt 0:00:01]} Rb1 {[%emt 0:00:01]} 38. Kc4 {[%emt 0:00:02]} Ke6 {[%emt 0:00:04]} 39. f4 {[%emt 0:00:22]} Rc1+ {[%emt 0:00:02]} 40. Kb5 {[%emt 0:00:01]} Kd6 {[%emt 0:00:01]} 41. Rxe5 {[%emt 0:00:04] Weighted Error Value: White=0.15 (very precise) /Black=0.34} 1-0

[Event "HUN Women vs Morgan Stanley 2022"]
[Site "Budapest"]
[Date "2022.06.27"]
[Round "3.4"]
[White "Torma, Robert"]
[Black "Lazarne Vajda, Szidonia"]
[Result "1-0"]
[ECO "D10"]
[WhiteElo "2421"]
[BlackElo "2313"]
[Annotator "TA"]
[PlyCount "73"]
[EventDate "2022.06.27"]
[EventType "schev"]
[EventCountry "HUN"]
[SourceTitle "playchess.com"]
[Source "ChessBase"]
[SourceQuality "1"]
[TimeControl "900+2"]

{[%evp 9,73,25,28,36,39,28,27,21,33,28,40,43,48,47,43,42,50,39,47,45,56,50,52,50,55,55,56,62,92,63,93,64,113,97,97,52,134,142,144,145,151,147,142,143,133,150,201,205,202,187,312,311,308,282,436,434,427,418,468,240,970,960,910,741,878,836]} 1. d4 {[%emt 0:00:04]} d5 {[%emt 0:00:14]} 2. c4 {[%emt 0:00:02]} c6 {[%emt 0:00:06]} 3. cxd5 {[%emt 0:00:03]} cxd5 {[%emt 0:00:01]} 4. Bf4 {[%emt 0:00:03]} Nc6 {[%emt 0:00:22]} 5. e3 {[%emt 0:00:05]} e6 {[%emt 0:00:14]} 6. Nc3 {[%emt 0:00:12] D10: Slav Defence: 3 cxd5 (without early Nf3) and 3 Nc3.} Bd6 {[%emt 0:00:41] 6...Bd6 scores better than 6...Nf6.} 7. Bg3 {[%emt 0:00:20]} Nf6 {[%emt 0:00:21]} 8. Bd3 {[%emt 0:00:03] White has an edge.} Bxg3 {[%emt 0:00:59]} 9. hxg3 {[%emt 0:00:02]} e5 {[%emt 0:00:09]} 10. dxe5 $1 {[%emt 0:00:21]} Nxe5 {[%emt 0:00:03] [#]} 11. Nf3 $146 {[%emt 0:01:19]} ({Predecessor:} 11. Bc2 Be6 12. Nge2 Qb6 13. Rb1 Rd8 14. Nd4 Nc6 15. Nxe6 fxe6 16. g4 d4 17. exd4 Qxd4 18. Qe2 Qxg4 19. Qxg4 Nxg4 20. Rxh7 Rxh7 21. Bxh7 Nf6 {½-½ (21) Marn,J (2035)-Kersic,M (2137) Nova Gorica 2018}) 11... Nxd3+ {[%emt 0:03:01]} 12. Qxd3 {[%emt 0:00:02]} Be6 {[%emt 0:00:18]} 13. Rd1 {[%emt 0:00:33]} Qb6 {[%emt 0:00:19]} 14. Nd4 {[%emt 0:01:46]} O-O-O {[%emt 0:00:31]} 15. Qb5 {[%emt 0:00:37]} Qxb5 {[%emt 0:00:37]} 16. Ncxb5 {[%emt 0:00:03] Pair of Knights!} a6 {[%emt 0:00:20]} 17. Nc3 {[%emt 0:00:02]} h6 {[%emt 0:00:16]} 18. f3 {[%emt 0:00:08]} Rhe8 {[%emt 0:00:21]} 19. Kf2 {[%emt 0:00:02]} Kb8 {[%emt 0:00:17]} 20. Nde2 {[%emt 0:00:31]} Nd7 {[%emt 0:00:58]} (20... h5 $14) 21. Nf4 {[%emt 0:02:29]} Nb6 {[%emt 0:00:14]} 22. Rd4 {[%emt 0:02:55]} g5 {[%emt 0:02:12]} ({Better is} 22... Rc8 $14) 23. Nxe6 $16 {[%emt 0:00:17] White is more active.} Rxe6 {[%emt 0:00:03]} 24. e4 {[%emt 0:00:35][%cal Be3e4,Be4d5,Bd5d6,Bd6d7][%mdl 32]} Red6 {[%emt 0:00:16] [#]} 25. Rhd1 $1 {[%emt 0:00:49]} Kc7 {[%emt 0:00:20]} 26. exd5 {[%emt 0:00:13]} (26. Nxd5+ Nxd5 27. exd5 f5 $16) 26... f5 {[%emt 0:00:14]} 27. a4 {[%emt 0:00:22][%cal Ba2a4,Ba4a5][%mdl 32]} Re8 {[%emt 0:00:49]} (27... Nc8 $16 28. Re1 Rb6) 28. g4 {[%emt 0:00:52]} fxg4 {[%emt 0:00:15]} 29. Ne4 {[%emt 0:00:23]} (29. fxg4 $6 Rf6+ 30. Kg1 Nd7 $16) 29... Rg6 {[%emt 0:00:40]} (29... Rdd8 {was called for.} 30. Nf6 (30. fxg4 Rxd5 31. Nc3 Rxd4 $11) 30... Rf8) 30. d6+ $18 {[%emt 0:00:02]} ({Stronger than} 30. fxg4 Nxd5 31. Kf3 Rge6 $11) 30... Kb8 {[%emt 0:00:25]} 31. d7 {[%emt 0:00:28]} ({Weaker is} 31. fxg4 Nd7 $16) 31... Rd8 {[%emt 0:00:01]} (31... Nxd7 $142 32. Rxd7 Rb6) 32. a5 {[%emt 0:00:04]} Na8 {[%emt 0:00:19]} 33. fxg4 {[%emt 0:00:09]} Nc7 {[%emt 0:00:04]} 34. Nc5 {[%emt 0:00:03]} (34. Rd6 $142 Rxd6 35. Rxd6) 34... Rg7 {[%emt 0:00:06] [#]} (34... Rc6) 35. Rd6 {[%emt 0:00:04] White is clearly winning.} Rf7+ {[%emt 0:00:02]} 36. Kg3 {[%emt 0:00:01]} Re7 37. Rb6 {Weighted Error Value: White=0.16 (very precise) /Black=0.26 (precise)} 1-0

[Event "HUN Women vs Morgan Stanley 2022"]
[Site "Budapest"]
[Date "2022.06.27"]
[Round "3.5"]
[White "Terbe, Julianna"]
[Black "Lizak, Peter"]
[Result "0-1"]
[ECO "A43"]
[WhiteElo "2304"]
[BlackElo "2400"]
[Annotator "TA"]
[PlyCount "76"]
[EventDate "2022.06.27"]
[EventType "schev"]
[EventCountry "HUN"]
[SourceTitle "playchess.com"]
[Source "ChessBase"]
[SourceQuality "1"]
[TimeControl "900+2"]

{[%evp 9,76,14,39,43,65,60,67,62,71,66,77,49,61,39,72,76,90,82,98,50,49,57,56,38,34,5,21,-2,61,66,70,54,151,28,103,-17,-15,-7,-7,-10,18,-13,0,0,4,-20,-27,-96,-90,-100,-95,-80,-84,-77,-93,-58,-61,-97,-104,-101,-92,-107,-87,-133,-145,-142,-129,-286,-276]} 1. d4 {[%emt 0:00:03]} Nf6 {[%emt 0:00:04]} 2. Nf3 {[%emt 0:00:02]} c5 {[%emt 0:00:01]} 3. d5 {[%emt 0:00:03]} b5 {[%emt 0:00:03]} 4. c3 {[%emt 0:00:24][%cal Bc2c3,Bc3c4,Bc4d5][%mdl 32]} Bb7 {[%emt 0:00:05]} 5. e4 {[%emt 0:00:10]} Nxe4 {[%emt 0:00:05]} 6. Bxb5 {[%emt 0:00:02] A43: Schmid Benoni.} Nd6 {[%emt 0:00:48]} 7. Be2 {[%emt 0:00:42]} e6 {[%emt 0:00:46]} 8. c4 {[%emt 0:00:34] [#] White is slightly better.} exd5 $146 {[%emt 0:00:35]} ({Predecessor:} 8... Be7 9. Nc3 O-O 10. O-O Bf6 11. Bf4 Nf5 12. Ne4 exd5 13. Nxc5 Qc8 14. Nxb7 Qxb7 15. Qxd5 Qxd5 16. cxd5 Bxb2 {1-0 (33) Saada,J-Gosset,A (2067) Pau 2000}) 9. cxd5 {[%emt 0:00:02]} Be7 {[%emt 0:00:03]} 10. O-O {[%emt 0:00:10]} O-O {[%emt 0:00:04]} 11. Nc3 {[%emt 0:00:03]} Na6 {[%emt 0:01:38]} 12. Bf4 {[%emt 0:00:28]} Re8 {[%emt 0:00:39]} 13. Re1 {[%emt 0:00:34]} Bf8 {[%emt 0:02:14]} 14. Qa4 {[%emt 0:02:35]} (14. Ne5 $16) 14... Nc7 $14 {[%emt 0:02:41]} 15. Rad1 {[%emt 0:00:35]} a6 {[%emt 0:00:02][%cal Oc7b5]} 16. Bg5 {[%emt 0:01:22]} Qc8 {[%emt 0:00:24]} 17. Qh4 {[%emt 0:00:37]} h6 {[%emt 0:00:45]} 18. Bf4 {[%emt 0:00:29]} Ncb5 {[%emt 0:00:36]} ({Black should try} 18... Ndb5 $11) 19. Qg4 {[%emt 0:01:59]} Nxc3 {[%emt 0:00:41]} 20. bxc3 {[%emt 0:00:04]} Ne4 {[%emt 0:00:10]} (20... Nb5 $14) 21. c4 {[%emt 0:00:45]} ({Only move:} 21. Be5 $16) 21... Nc3 {[%emt 0:00:39] [#]} (21... d6 $1 $11 {remains equal.} 22. Qxc8 Bxc8) 22. Rd2 {[%emt 0:00:02]} (22. Bd3 $1 $16 Nxd1 (22... d6 23. Qg3) 23. Rxd1) 22... d6 $11 {[%emt 0:00:19]} 23. Qxc8 {[%emt 0:00:35]} Bxc8 {[%emt 0:00:01][%cal Bb7c8,Bc8g4,Bg4f5][%mdl 32]} 24. Bd3 {[%emt 0:00:15] Inhibits Bf5.} Bg4 {[%emt 0:00:18]} 25. Kf1 {[%emt 0:01:14]} g5 {[%emt 0:00:10]} 26. Be3 {[%emt 0:00:42]} Rab8 {[%emt 0:00:11]} 27. Rc2 {[%emt 0:00:09][%cal Bd2c2,Bc2c3,Bc3a3,Ba3a6,Ba6d6][%mdl 32]} Na4 {[%emt 0:00:20]} 28. Nd2 {[%emt 0:00:10]} (28. h3 $11 Bd7 29. Ree2) 28... Nb2 $17 {[%emt 0:00:07]} 29. Be2 {[%emt 0:00:15]} Bf5 $36 {[%emt 0:00:01][%mdl 2048] White is under strong pressure.} 30. Rc3 {[%emt 0:00:13]} Bg7 {[%emt 0:00:04][%cal Bf8g7,Bg7c3,Bc3d2,Bd2c3][%mdl 32]} 31. Ra3 {[%emt 0:00:01]} Rb4 {[%emt 0:00:47] 0x0.001b68e84335dp-1022s more active pieces.} 32. g4 {[%emt 0:00:23]} Bg6 {[%emt 0:00:04]} 33. Rxa6 {[%emt 0:00:21] [#]} Bc3 $1 {[%emt 0:00:01][%cal Oe8e3] White must now prevent ...Rxe3!} 34. Rxd6 {[#]} ({Of course not} 34. a3 Rbb8 35. a4 {[#]} (35. Rxd6 Rxe3 36. fxe3 Bxd2 $17) 35... Rxe3 $1 36. fxe3 Bxd2 $15) 34... Rxe3 $1 {[%emt 0:00:04][%mdl 576] Remove Defender} 35. fxe3 {[%emt 0:00:06] And now Rd8+ would win.} Bxd2 {[%emt 0:00:01] This bishop pair is nice.} 36. a3 {[%emt 0:00:02]} (36. Rc6 $142) 36... Rb8 {[%emt 0:00:04][%mdl 1024] Black has strong compensation.} 37. Ra1 {[%emt 0:00:01]} Na4 {[%emt 0:00:07]} ({Weaker is} 37... Bxe3 38. a4 Bd4 39. Ra3 $17) 38. Bd1 $2 {[%emt 0:00:03]} (38. Ra6 $17 Nc3 39. a4 (39. Kf2 $2 Ne4+ 40. Kg2 Rb2 $19)) 38... Bc3 {[%emt 0:00:14] Weighted Error Value: White=0.28 (precise) /Black=0.16 (very precise)} 0-1

[Event "HUN Women vs Morgan Stanley 2022"]
[Site "Budapest"]
[Date "2022.06.27"]
[Round "4.1"]
[White "Tomosvary, Attila"]
[Black "Hoang, Thanh Trang"]
[Result "0-1"]
[ECO "C14"]
[WhiteElo "2140"]
[BlackElo "2376"]
[Annotator "TA"]
[PlyCount "108"]
[EventDate "2022.06.27"]
[EventType "schev"]
[EventCountry "HUN"]
[SourceTitle "playchess.com"]
[Source "ChessBase"]
[SourceQuality "1"]
[TimeControl "900+2"]

{[%evp 22,108,4,2,25,20,47,48,54,53,62,62,63,61,68,17,50,45,47,27,35,37,47,24,27,2,12,0,0,0,8,0,27,0,49,-12,71,10,70,-1,60,-29,5,0,0,0,0,0,0,-9,0,0,0,0,0,-293,-3,-18,-9,-20,-10,-12,0,-604,-578,-841,-139,-745,-536,-805,-1040,-9069,-7625,-29968,-29970,-29969,-29968,-29970,-29971,-29979,-29980,-29982,-29983,-29981,-29982,-29982,-29983,-29984,-29985]} 1. e4 {[%emt 0:00:08]} e6 {[%emt 0:00:04]} 2. d4 {[%emt 0:00:04]} d5 {[%emt 0:00:03]} 3. Nc3 {[%emt 0:00:10]} Nf6 {[%emt 0:00:08][%cal Bg8f6,Bf6d7,Bd7c5,Bc5e4][%mdl 32]} 4. Bg5 {[%emt 0:00:16]} Be7 {[%emt 0:00:07]} 5. e5 {[%emt 0:00:08]} Nfd7 {[%emt 0:00:03]} 6. Bxe7 {[%emt 0:00:11]} Qxe7 {[%emt 0:00:04]} 7. f4 {[%emt 0:00:06]} a6 {[%emt 0:00:14]} 8. Nf3 {[%emt 0:00:04]} c5 {[%emt 0:00:10]} 9. dxc5 {[%emt 0:00:07]} Nc6 {[%emt 0:01:14]} 10. Qd2 {[%emt 0:00:10]} Nxc5 {[%emt 0:00:17]} 11. Bd3 {[%emt 0:00:09]} b5 {[%emt 0:00:22]} 12. O-O {[%emt 0:00:40]} Bb7 {[%emt 0:01:06] C14: French: Classical System: 4 Bg5 Be7 main line.} 13. Ne2 {[%emt 0:00:34]} Rd8 {[%emt 0:00:26]} 14. Ned4 {[%emt 0:00:19]} Ne4 {[%emt 0:01:06] White is slightly better.} 15. Qe3 {[%emt 0:02:26]} O-O {[%emt 0:00:32] [#]} 16. Nxc6 $146 {[%emt 0:00:25]} ({Predecessor:} 16. a4 Nxd4 17. Nxd4 bxa4 18. Rxa4 Nc5 19. Ra3 Nxd3 20. Rxd3 Rc8 21. f5 exf5 22. Nxf5 {1-0 (37) Barwinska,E (1826)-Suchanek,P (1547) Sypniewo 2021}) 16... Bxc6 {[%emt 0:00:05]} 17. Nd4 {[%emt 0:00:11]} Bb7 {[%emt 0:00:16]} 18. Rf3 {[%emt 0:00:25]} (18. a3 $14) 18... Qb4 {[%emt 0:02:00]} 19. Rb1 {[%emt 0:02:05]} Qd2 {[%emt 0:00:39]} (19... Nd2 $2 20. Bxh7+ $1 {[%mdl 512]} Kxh7 21. Rh3+ Kg8 22. c3 $18) 20. Rh3 {[%emt 0:00:38]} Qxe3+ {[%emt 0:00:14]} 21. Rxe3 {[%emt 0:00:05]} Rc8 {[%emt 0:01:00]} 22. Bxe4 {[%emt 0:00:59]} dxe4 {[%emt 0:00:02]} 23. c3 {[%emt 0:00:12]} Bd5 {[%emt 0:00:19]} 24. a3 {[%emt 0:00:19]} f6 {[%emt 0:00:42]} 25. exf6 {[%emt 0:00:42]} Rxf6 {[%emt 0:00:15]} 26. g3 {[%emt 0:00:20]} Kf7 {[%emt 0:00:57]} 27. Rd1 {[%emt 0:00:14]} h5 {[%emt 0:00:10]} (27... Rg8 $11 {is superior.}) 28. Nc2 {[%emt 0:00:42]} ({White should try} 28. h4 $1 $14) 28... a5 {[%emt 0:00:12]} (28... h4 $1 $11) 29. Nd4 {[%emt 0:00:17]} (29. h4 $16) 29... Rb8 {[%emt 0:00:03]} (29... h4 $11) 30. b4 {[%emt 0:00:36]} (30. h4 $1 $14) 30... a4 {[%emt 0:00:08]} ({Black should play} 30... h4 $11) 31. Rde1 {[%emt 0:00:14]} ({Better is} 31. h4 $14) 31... Ke7 {[%emt 0:00:37]} (31... h4 $5 {[%cal Rh4g3]}) 32. Rxe4 {[%emt 0:00:08]} Bxe4 {[%emt 0:00:03]} 33. Rxe4 $11 {[%emt 0:00:01][%mdl 4096] Endgame Hoping for Nc6+. KRR-KRN} Kd7 {[%emt 0:00:14] Inhibits Nc6.} 34. Re5 {[%emt 0:00:08]} h4 {[%emt 0:00:09]} 35. Nxb5 {[%emt 0:00:31]} hxg3 {[%emt 0:00:08]} 36. hxg3 {[%emt 0:00:01]} Rf5 {[%emt 0:00:11]} 37. Rxf5 {[%emt 0:00:14]} exf5 {[%emt 0:00:01] KR-KN} 38. Nd4 {[%emt 0:00:02][%mdl 8192]} (38. c4 $1 $11 {and White has nothing to worry.}) 38... g6 $2 {[%emt 0:00:01]} (38... Rc8 $19 39. Nb5 Rc4) 39. Kf2 {[%emt 0:00:28]} Rc8 {[%emt 0:00:01][%mdl 1024] Black has compensation.} 40. Ne2 {[%emt 0:00:03]} Re8 {[%emt 0:00:16]} 41. Nd4 {[%emt 0:00:04]} Re4 {[%emt 0:00:07] ...Kd6 is the strong threat.} 42. Kf3 $2 {[%emt 0:00:04][%mdl 8192] [#]} (42. Nf3 $11) 42... Re1 $1 $19 {[%emt 0:00:18]} 43. g4 {[%emt 0:00:07]} Rf1+ $2 {[%emt 0:00:14]} (43... fxg4+ $19 44. Kxg4 Rc1) 44. Kg2 $2 {[%emt 0:00:10][%mdl 8192] This move loses the game for White.} (44. Ke2 $17 Rxf4 45. gxf5) 44... Rxf4 {[%emt 0:00:10]} 45. gxf5 {[%emt 0:00:01]} gxf5 {[%emt 0:00:03]} 46. Kg3 {[%emt 0:00:01]} Rf1 {[%emt 0:00:02] ( -> ...Rc1)} 47. c4 {[%emt 0:00:07]} Rc1 {[%emt 0:00:10] Black mates.} 48. c5 {[%emt 0:00:10]} Rc3+ {[%emt 0:00:06]} 49. Kf4 {[%emt 0:00:04]} Rxa3 {[%emt 0:00:01]} 50. b5 {[%emt 0:00:12]} Rd3 {[%emt 0:00:06]} 51. Ke5 {[%emt 0:00:07]} a3 {[%emt 0:00:04]} 52. c6+ {[%emt 0:00:01]} Kc7 {[%emt 0:00:03]} 53. Ne6+ {[%emt 0:00:02]} Kb6 {[%emt 0:00:01]} 54. c7 {[%emt 0:00:03]} Rc3 {[%emt 0:00:01] Weighted Error Value: White=0.89/Black=0.44} 0-1

[Event "HUN Women vs Morgan Stanley 2022"]
[Site "Budapest"]
[Date "2022.06.27"]
[Round "4.2"]
[White "Gara, Ticia"]
[Black "Novaky, Csaba"]
[Result "1-0"]
[ECO "C50"]
[WhiteElo "2367"]
[BlackElo "2091"]
[Annotator "TA"]
[PlyCount "73"]
[EventDate "2022.06.27"]
[EventType "schev"]
[EventCountry "HUN"]
[SourceTitle "playchess.com"]
[Source "ChessBase"]
[SourceQuality "1"]
[TimeControl "900+2"]

{[%evp 13,73,8,14,14,21,11,47,47,46,47,86,58,72,66,70,70,63,64,101,87,95,63,91,94,78,64,79,23,43,10,64,0,90,89,143,140,135,124,177,185,187,169,215,184,221,213,397,388,416,399,481,483,631,379,758,711,819,808,648,580,643,635]} 1. e4 {[%emt 0:00:05]} e5 {[%emt 0:00:04]} 2. Nf3 {[%emt 0:00:01]} Nc6 {[%emt 0:00:01]} 3. Bc4 {[%emt 0:00:04]} Bc5 {[%emt 0:00:02]} 4. O-O {[%emt 0:00:06]} Nf6 {[%emt 0:00:03]} 5. d3 {[%emt 0:00:09]} O-O {[%emt 0:00:21]} 6. c3 {[%emt 0:00:40]} d6 {[%emt 0:00:21]} 7. h3 {[%emt 0:00:13] 7.Re1 is the modern continuation.} Bb6 {[%emt 0:00:33]} 8. a4 {[%emt 0:00:33] C54: Giuoco Piano: 4 c3 Nf6, main lines with 5 d4 and 5 d3.} a6 {[%emt 0:00:35]} 9. Nbd2 {[%emt 0:00:04] [#]} d5 $146 {[%emt 0:00:24]} ({Predecessor:} 9... Ne7 10. a5 Ba7 11. Re1 Ng6 12. Nf1 c6 13. Ba2 Be6 14. Be3 Bxe3 15. Nxe3 Bxa2 16. Rxa2 {½-½ (32) Saric,I (2646)-Romanov,E (2599) Playchess.com INT 2020}) 10. exd5 {[%emt 0:00:02] White is slightly better.} Nxd5 {[%emt 0:00:01]} 11. Re1 {[%emt 0:00:48]} Nf4 {[%emt 0:02:38]} 12. Nf1 {[%emt 0:00:51]} Be6 {[%emt 0:00:46]} 13. Bxf4 {[%emt 0:03:40]} Bxc4 {[%emt 0:00:13]} 14. Nxe5 {[%emt 0:01:43]} Nxe5 {[%emt 0:00:23]} 15. Bxe5 {[%emt 0:00:02]} Bxd3 {[%emt 0:02:12]} 16. a5 {[%emt 0:00:08]} Ba7 {[#]} 17. Bxc7 $1 {[%emt 0:00:01]} Qxc7 {[%emt 0:00:23]} (17... Qf6 18. Ne3) 18. Qxd3 {[%emt 0:00:01]} Rad8 {[%emt 0:00:18]} 19. Qf3 {[%emt 0:00:24]} h6 {[%emt 0:00:52]} 20. Ne3 {[%emt 0:00:02]} ({White should try} 20. Re2 $16) 20... Rd2 $1 $11 {[%emt 0:00:48]} 21. Re2 $36 {[%mdl 2048] White is more active.} Rfd8 (21... Rxe2 $11 22. Qxe2 Re8) 22. g3 {[%emt 0:03:06]} (22. Rae1 $14) 22... Bxe3 {[%emt 0:01:26]} (22... Rxe2 $1 $11 {keeps the balance.} 23. Qxe2 Re8) 23. Qxe3 $16 {[%emt 0:00:03]} Rd1+ {[%emt 0:00:18] [#]} (23... R2d5 $142) 24. Rxd1 $1 {[%emt 0:00:05]} Rxd1+ {[%emt 0:00:01][%mdl 4096] Endgame KQR-KQR} 25. Kg2 {[%emt 0:01:03]} Qc6+ {[%emt 0:00:46]} (25... Qxa5 $16 26. Qe8+ Kh7) 26. Qe4 $18 {[%emt 0:00:09]} Qxe4+ {[%emt 0:00:55]} 27. Rxe4 {[%emt 0:00:01] Black must now prevent Re8+. KR-KR} Rd5 {[%emt 0:00:31]} (27... Kf8 $142 28. Kf3 Rd3+ 29. Ke2 Rd7) 28. Re8+ {[%emt 0:00:15]} Kh7 {[%emt 0:00:02]} 29. b4 {[%emt 0:00:32] Re7 is the strong threat.} Rb5 $2 {[%emt 0:00:28]} (29... Rd7 {is a better defense.} 30. c4 Rc7) 30. Kf3 {[%emt 0:00:08]} Kg6 {[%emt 0:00:08]} 31. Ke4 {[%emt 0:00:02] Threatens to win with Re5.} Kf6 {[%emt 0:00:03] Prevents Re5.} 32. Kd4 {[%emt 0:00:02]} Rh5 {[%emt 0:00:12]} 33. h4 {[%emt 0:00:03]} g5 $2 {[%emt 0:00:02]} (33... Rb5 34. f3 g6) 34. hxg5+ {[%emt 0:00:08] White is clearly winning.} hxg5 {[%emt 0:00:02]} 35. Rb8 {[%emt 0:00:02]} Rh2 {[%emt 0:00:05]} 36. Ke3 {[%emt 0:00:04]} Kf5 {[%emt 0:00:12]} 37. Rxb7 {[%emt 0:00:02] Weighted Error Value: White=0.14 (very precise) /Black=0.46} 1-0